bitfinex/quotes_BTCUSD_20260125
["timestamp","ask_amount","ask_price","bid_price","bid_amount"]
[1769333966949,0.0001752,88454.0,88441.0,0.58363898]
[1769333967188,0.0001752,88454.0,88441.0,0.57144701]
[1769333968165,0.0001752,88454.0,88442.0,0.01246572]
[1769333970646,0.24518298,88461.0,88442.0,0.01246572]
[1769333970863,0.55920315,88460.0,88442.0,0.01246572]
[1769333975194,0.34436494,88460.0,88443.0,0.09059954]
[1769333975418,0.34436494,88460.0,88444.0,0.01246543]
[1769333975671,0.24518298,88459.0,88444.0,0.01246543]
[1769333976376,0.1738,88465.0,88444.0,0.01246543]
[1769333976604,0.24518298,88464.0,88445.0,0.32430174]
[1769333976813,0.24538298,88463.0,88445.0,0.41692168]
[1769333977028,0.44192873,88463.0,88445.0,0.41692168]
[1769333977208,0.24518298,88462.0,88446.0,0.01125927]
[1769333978750,0.2007705,88462.0,88446.0,0.01125927]
[1769333978970,0.24518298,88461.0,88446.0,0.01125927]
[1769333981243,0.0002,88463.0,88447.0,0.09249933]
[1769333981464,0.0002,88463.0,88432.0,0.0001298]
[1769333981465,0.0002,88463.0,88451.0,0.32430174]
[1769333981663,0.0002,88463.0,88453.0,0.32430174]
[1769333982946,0.0002,88463.0,88454.0,0.01063532]
[1769333984198,0.0002,88463.0,88455.0,0.32430174]
[1769333984425,0.0002,88463.0,88456.0,0.32430174]
[1769333984761,0.0003295,88471.0,88459.0,0.58943227]
[1769333984966,0.0003295,88471.0,88460.0,0.58943227]
[1769333984967,0.0004718,88471.0,88460.0,0.58943227]
[1769333985176,0.0004718,88471.0,88451.0,0.02933343]
[1769333985372,0.0004718,88471.0,88454.0,0.58943227]
[1769333985594,0.0004718,88471.0,88458.0,0.32430174]
[1769333985876,0.0004718,88471.0,88462.0,0.32430174]
[1769333986071,0.0004718,88471.0,88463.0,0.08911211]
[1769333986395,0.0004718,88471.0,88463.0,0.41341385]
[1769333986740,0.0004718,88471.0,88463.0,1.00284612]
[1769333986972,0.0004718,88471.0,88463.0,0.91373401]
[1769333989577,0.0004718,88471.0,88453.0,0.91373401]
[1769333989780,0.0004718,88471.0,88454.0,0.01067095]
[1769333989984,0.0004718,88471.0,88454.0,0.58943227]
[1769333990226,0.0004718,88471.0,88457.0,0.32430174]
[1769333990428,0.0004718,88471.0,88459.0,0.32430174]
[1769333990635,0.0004718,88471.0,88461.0,0.32430174]
[1769333990960,0.0004718,88471.0,88465.0,0.32430174]
[1769333991168,0.0004718,88471.0,88465.0,0.35651297]
[1769333991398,0.0004718,88471.0,88466.0,0.01066842]
[1769333991609,0.0004718,88471.0,88468.0,0.91373401]
[1769333991817,0.0004718,88471.0,88469.0,0.32430174]
[1769333992032,0.0004718,88471.0,88470.0,0.32430174]
[1769333992237,0.0004718,88471.0,88470.0,0.41567514]
[1769333995020,0.0004718,88471.0,88470.0,0.91373401]
[1769333995387,0.0001,88476.0,88455.0,0.32430174]
[1769333995591,0.0001,88476.0,88459.0,0.58943227]
[1769333995798,0.0001,88476.0,88462.0,0.32430174]
[1769333996001,0.0001,88476.0,88465.0,0.58943227]
[1769333996210,0.0001,88476.0,88468.0,0.32430174]
[1769333996412,0.0001,88476.0,88469.0,0.92429226]
[1769333996612,0.0001,88476.0,88469.0,0.91373401]
[1769333996857,0.0001,88476.0,88470.0,0.0913734]
[1769333998104,0.0001,88476.0,88471.0,0.0105946]
[1769333998313,0.0001,88476.0,88472.0,0.58943227]
[1769333998515,0.0004,88479.0,88473.0,0.32430174]
[1769334001140,0.0004,88479.0,88456.0,0.06669219]
[1769334001141,0.0004,88479.0,88459.0,0.32430174]
[1769334001344,0.25474181,88479.0,88460.0,0.33490856]
[1769334001520,0.25474181,88479.0,88460.0,0.32430174]
[1769334001788,0.25474181,88479.0,88461.0,0.33490852]
[1769334001990,0.25474181,88479.0,88462.0,0.58943227]
[1769334002173,0.25474181,88479.0,88463.0,0.12220932]
[1769334005300,0.0004,88479.0,88466.0,0.31523192]
[1769334005482,0.0004,88479.0,88467.0,0.01173642]
[1769334005912,0.0004,88479.0,88467.0,0.32696834]
[1769334006151,0.0004,88479.0,88468.0,0.01629246]
[1769334007275,0.0004,88479.0,88468.0,0.02794554]
[1769334011475,0.0004,88479.0,88468.0,0.01629246]
[1769334011891,0.0004,88479.0,88468.0,0.0285886]
[1769334012511,0.0004,88479.0,88468.0,0.01629246]
[1769334012714,0.0004,88479.0,88469.0,0.03449661]
[1769334016356,0.25474181,88479.0,88461.0,0.01358736]
[1769334016808,0.25474181,88479.0,88461.0,0.31811863]
[1769334017010,0.25474181,88479.0,88461.0,0.30453127]
[1769334017391,0.25474181,88479.0,88461.0,0.567459]
[1769334017603,0.25474181,88479.0,88462.0,0.30453127]
[1769334017952,0.25474181,88479.0,88463.0,0.12271482]
[1769334018492,0.25474181,88479.0,88463.0,0.42724609]
[1769334018716,0.25474181,88479.0,88463.0,0.67655403]
[1769334019014,0.25474181,88479.0,88464.0,0.30453127]
[1769334019316,0.0004,88479.0,88465.0,0.0129848]
[1769334019514,0.0004,88479.0,88466.0,0.0854924]
[1769334019716,0.0004,88479.0,88467.0,0.0129845]
[1769334021408,0.0004,88479.0,88467.0,0.31751577]
[1769334021607,0.0004,88479.0,88467.0,0.30453127]
[1769334021840,0.0004,88479.0,88468.0,0.09574827]
[1769334026617,0.0004,88479.0,88464.0,0.30453127]
[1769334026798,0.0004,88479.0,88467.0,0.567459]
[1769334026957,0.0004,88479.0,88469.0,0.30453127]
[1769334027387,0.0004,88479.0,88469.0,0.29385314]
[1769334037475,0.0004,88479.0,88462.0,0.58560135]
[1769334037706,0.0004,88479.0,88463.0,0.11027394]
[1769334038820,0.0004,88479.0,88463.0,0.40562493]
[1769334039048,0.0004,88479.0,88463.0,0.39270887]
[1769334039277,0.0004,88479.0,88464.0,0.01292217]
[1769334040366,0.25434181,88478.0,88464.0,0.01292217]
[1769334041523,0.25434181,88478.0,88464.0,0.11015172]
[1769334041950,0.29245238,88475.0,88458.0,8.91e-05]
[1769334042086,0.0004,88479.0,88458.0,0.01307553]
[1769334042087,0.29245238,88473.0,88458.0,0.01307553]
[1769334042298,0.25434181,88472.0,88458.0,0.01307553]
[1769334042497,0.25434181,88472.0,88459.0,0.10678502]
[1769334044666,0.01130275,88474.0,88459.0,0.10678502]
[1769334044667,0.25434181,88470.0,88459.0,0.10678502]
[1769334044824,0.25434181,88470.0,88458.0,8.91e-05]
[1769334046272,0.25434181,88470.0,88455.0,0.0001423]
[1769334046447,0.58651179,88466.0,88455.0,0.0001423]
[1769334046645,0.58651179,88464.0,88455.0,0.0001423]
[1769334046847,0.58651179,88464.0,88456.0,0.03084853]
[1769334047773,0.58651179,88464.0,88455.0,0.0001423]
[1769334048762,0.28629773,88463.0,88455.0,0.0001423]
[1769334048938,0.58651179,88462.0,88455.0,0.0001423]
[1769334049287,0.28602276,88457.0,88435.0,0.88095234]
[1769334049488,0.8722331,88454.0,88438.0,0.01315593]
[1769334049678,0.87237532,88454.0,88438.0,0.01315593]
[1769334053355,0.28616498,88454.0,88438.0,0.01315593]
[1769334053551,0.58621034,88453.0,88439.0,0.08941083]
[1769334053896,0.58621034,88453.0,88440.0,0.01299356]
[1769334054630,0.58621034,88453.0,88439.0,0.10240473]
[1769334056396,0.58621034,88452.0,88439.0,0.10240473]
[1769334056543,0.58621034,88452.0,88439.0,0.08941083]
[1769334056980,0.58621034,88452.0,88440.0,0.09835193]
[1769334059617,0.58621034,88450.0,88438.0,0.0001622]
[1769334059794,0.58621034,88449.0,88438.0,0.0001622]
[1769334061234,0.0113062,88447.0,88438.0,0.0001622]
[1769334061394,0.01130607,88448.0,88438.0,0.0001622]
[1769334061992,0.58621034,88449.0,88438.0,0.0001622]
[1769334067881,0.00014222,88454.0,88438.0,0.0001622]
[1769334068104,0.00014222,88454.0,88441.0,0.5528528]
[1769334068311,0.00014222,88454.0,88442.0,0.31284239]
[1769334068525,0.00014222,88454.0,88442.0,0.29897049]
[1769334069608,0.00014222,88454.0,88445.0,0.5528528]
[1769334069805,0.00014222,88454.0,88446.0,0.31054318]
[1769334070046,0.00014222,88454.0,88446.0,0.29897049]
[1769334071350,0.00014222,88454.0,88447.0,0.01300483]
[1769334081128,0.00014222,88454.0,88447.0,0.01292676]
[1769334082377,0.41760811,88461.0,88447.0,0.01292676]
[1769334082970,0.41760811,88461.0,88447.0,0.09940177]
[1769334085532,0.41760811,88461.0,88447.0,0.01292676]
[1769334089710,0.18821732,88461.0,88447.0,0.01292676]
[1769334089939,0.18846133,88461.0,88447.0,0.01292676]
[1769334092118,0.00024401,88461.0,88447.0,0.01292676]
[1769334092488,0.0001622,88472.0,88459.0,0.51292946]
[1769334092665,0.0001622,88472.0,88459.0,0.51307168]
[1769334093138,0.0001622,88472.0,88459.0,0.50834589]
[1769334093355,0.01130339,88469.0,88459.0,0.50834589]
[1769334094756,0.01149976,88470.0,88459.0,0.50834589]
[1769334095797,0.01149976,88470.0,88460.0,0.90660749]
[1769334096431,0.01149976,88470.0,88459.0,0.00014222]
[1769334096432,0.0001965,88470.0,88461.0,0.90660749]
[1769334097308,0.0001965,88470.0,88461.0,0.09067497]
[1769334097528,0.0001965,88470.0,88461.0,0.30941769]
[1769334097738,0.0001965,88470.0,88462.0,0.30941769]
[1769334097946,0.0001965,88470.0,88459.0,0.00014222]
[1769334097947,0.0005463,88479.0,88470.0,0.5971898]
[1769334098192,0.0005463,88479.0,88471.0,0.30941769]
[1769334098499,0.0005463,88479.0,88464.0,0.5971898]
[1769334098701,0.01130237,88477.0,88465.0,0.09067497]
[1769334098881,0.01130224,88478.0,88465.0,0.09067497]
[1769334099404,0.01130237,88477.0,88465.0,0.09067497]
[1769334099764,0.01130237,88477.0,88464.0,0.5971898]
[1769334102846,0.0005463,88479.0,88464.0,0.5971898]
[1769334103048,0.0005463,88479.0,88464.0,0.90660749]
[1769334105984,0.0005463,88479.0,88464.0,0.5971898]
[1769334107468,0.0005463,88479.0,88464.0,0.90660749]
[1769334111106,0.0005463,88479.0,88464.0,0.86241749]
[1769334112822,0.0005463,88479.0,88465.0,0.01306901]
[1769334114566,0.17372,88478.0,88465.0,0.01306901]
[1769334116975,0.01285834,88478.0,88465.0,0.01306901]
[1769334117841,0.01285834,88478.0,88465.0,0.9196765]
[1769334118063,0.01285834,88478.0,88466.0,0.09198187]
[1769334118266,0.01285834,88478.0,88466.0,0.1050393]
[1769334118715,0.01285834,88478.0,88466.0,0.61024723]
[1769334118899,0.01285834,88478.0,88466.0,0.5971898]
[1769334120334,0.01285834,88478.0,88466.0,0.90660749]
[1769334120635,0.01285834,88478.0,88467.0,0.5971898]
[1769334121496,0.01285834,88478.0,88467.0,0.90660749]
[1769334121698,0.01285834,88478.0,88468.0,0.09066075]
[1769334121936,0.01285834,88478.0,88468.0,0.99726824]
[1769334122109,0.01285834,88478.0,88468.0,0.30941769]
[1769334122321,0.01285834,88478.0,88459.0,0.00014222]
[1769334122322,0.0005463,88479.0,88471.0,0.5971898]
[1769334122534,0.0005463,88479.0,88471.0,0.90660749]
[1769334123667,0.1738663,88488.0,88459.0,0.00014222]
[1769334123867,0.1738663,88488.0,88463.0,0.31205576]
[1769334124073,0.1738663,88488.0,88466.0,0.57206475]
[1769334124274,0.1738663,88488.0,88470.0,0.31205576]
[1769334124434,0.1738663,88488.0,88473.0,0.51546723]
[1769334127489,9.0,88485.0,88475.0,0.57206475]
[1769334128495,8.82861197,88485.0,88475.0,0.57206475]
[1769334130890,8.82861197,88485.0,88476.0,0.57206475]
[1769334131338,8.82861197,88485.0,88476.0,0.56652943]
[1769334131516,8.82861197,88485.0,88477.0,0.31205576]
[1769334131725,8.82861197,88485.0,88479.0,0.54876475]
[1769334137083,8.82861197,88485.0,88478.0,0.31205576]
[1769334137287,8.82861197,88485.0,88473.0,0.31415647]
[1769334137499,8.82861197,88485.0,88474.0,0.0130572]
[1769334137706,8.82861197,88485.0,88474.0,0.63264726]
[1769334138057,8.82861197,88485.0,88474.0,0.61959006]
[1769334138390,8.82861197,88485.0,88475.0,0.01301863]
[1769334139207,8.82861197,88485.0,88475.0,0.61959006]
[1769334139426,8.82861197,88485.0,88476.0,0.01301864]
[1769334139704,8.82861197,88485.0,88476.0,0.6326087]
[1769334139910,8.82861197,88485.0,88476.0,0.93374653]
[1769334141707,8.82861197,88485.0,88477.0,0.01301847]
[1769334142293,8.82861197,88485.0,88477.0,0.63260853]
[1769334142496,8.82861197,88485.0,88477.0,0.61959006]
[1769334143485,8.82861197,88485.0,88478.0,0.63265776]
[1769334143687,8.82861197,88485.0,88478.0,0.61959006]
[1769334147649,8.62139268,88485.0,88479.0,0.09337465]
[1769334148631,8.62139268,88485.0,88479.0,0.10757083]
[1769334151455,8.62139268,88485.0,88479.0,0.01419618]
[1769334151672,8.62139268,88485.0,88480.0,0.31415647]
[1769334151871,8.62139268,88485.0,88483.0,0.61959006]
[1769334152073,8.62139268,88485.0,88465.0,0.0113039]
[1769334152074,8.62139268,88485.0,88484.0,0.93374653]
[1769334152499,8.62139268,88485.0,88484.0,0.92826853]
[1769334163755,8.62139268,88485.0,88473.0,0.21892]
[1769334163923,8.62139268,88485.0,88474.0,0.61690048]
[1769334164126,8.62139268,88485.0,88478.0,0.61690048]
[1769334164333,8.62139268,88485.0,88481.0,0.32057926]
[1769334164513,8.62139268,88485.0,88482.0,0.61690048]
[1769334164872,8.62139268,88485.0,88483.0,0.32057926]
[1769334165059,8.62139268,88485.0,88484.0,0.61690048]
[1769334174060,8.62139268,88485.0,88479.0,0.08358205]
[1769334174264,8.62139268,88485.0,88481.0,0.61690048]
[1769334174499,8.62139268,88485.0,88482.0,0.62998613]
[1769334174699,8.62139268,88485.0,88482.0,0.93747974]
[1769334174901,8.62139268,88485.0,88483.0,0.61690048]
[1769334175104,8.62139268,88485.0,88484.0,0.01283689]
[1769334176255,8.62139268,88485.0,88484.0,0.11239255]
[1769334179547,8.62139268,88485.0,88484.0,0.01283689]
[1769334179697,8.62139268,88485.0,88483.0,0.01283689]
[1769334180110,8.40168688,88485.0,88483.0,0.01283689]
[1769334181303,8.40168688,88485.0,88479.0,0.01534523]
[1769334183097,8.40168688,88485.0,88478.0,0.04524]
[1769334183266,8.40168688,88485.0,88479.0,0.11160278]
[1769334185539,8.40168688,88485.0,88480.0,0.01308429]
[1769334186602,8.40168688,88485.0,88480.0,0.58446229]
[1769334186800,8.17394354,88485.0,88480.0,0.571378]
[1769334187009,8.17394354,88485.0,88481.0,0.01308414]
[1769334187226,8.17394354,88485.0,88482.0,0.03392303]
[1769334187436,8.17394354,88485.0,88482.0,0.0337571]
[1769334187688,8.17394354,88485.0,88483.0,0.01308384]
[1769334188127,8.17394354,88485.0,88483.0,0.01291792]
[1769334194275,8.17394354,88485.0,88482.0,0.0337571]
[1769334195395,8.17394354,88485.0,88483.0,0.04906162]
[1769334196330,5.65959539,88485.0,88484.0,0.91669122]
[1769334196882,5.53869328,88485.0,88483.0,0.04906162]
[1769334197084,5.53844581,88485.0,88482.0,0.0337571]
[1769334197310,5.53844581,88485.0,88483.0,0.60419838]
[1769334197512,5.53844581,88485.0,88482.0,0.0337571]
[1769334197683,5.53844581,88485.0,88484.0,0.31249284]
[1769334203384,5.53844581,88485.0,88484.0,0.91669122]
[1769334203581,5.53844581,88485.0,88484.0,1.01286629]
[1769334206413,5.49324552,88485.0,88484.0,0.70037345]
[1769334206759,5.4712665,88485.0,88484.0,1.01286629]
[1769334206947,5.22635756,88485.0,88484.0,1.18650629]
[1769334208286,5.22635756,88485.0,88484.0,0.58230791]
[1769334208493,5.19241578,88485.0,88484.0,0.58230791]
[1769334209787,5.19218933,88485.0,88484.0,0.58230791]
[1769334211285,5.19218933,88485.0,88484.0,0.26981507]
[1769334211489,5.19218933,88485.0,88479.0,0.17364]
[1769334216320,5.19218933,88485.0,88479.0,0.0005]
[1769334216461,5.19218933,88485.0,88475.0,0.0033686]
[1769334216879,5.19218933,88485.0,88476.0,0.08051879]
[1769334218899,0.68405497,88484.0,88476.0,0.08051879]
[1769334219217,0.68405497,88484.0,88473.0,0.31249284]
[1769334220003,0.68405497,88484.0,88473.0,0.31236045]
[1769334220786,0.68405497,88484.0,88473.0,0.31336045]
[1769334221427,0.68405497,88484.0,88473.0,0.31236045]
[1769334222263,5.19218933,88485.0,88473.0,0.31236045]
[1769334222495,5.19218933,88485.0,88474.0,0.00110391]
[1769334223816,5.19218933,88485.0,88474.0,0.00224231]
[1769334225250,5.19218933,88485.0,88474.0,0.00336411]
[1769334225548,5.19218933,88485.0,88474.0,0.00512614]
[1769334228046,5.19218933,88485.0,88473.0,0.31236045]
[1769334229082,5.8762443,88485.0,88473.0,0.31236045]
[1769334229312,5.8762443,88485.0,88474.0,0.00174649]
[1769334229638,5.8762443,88485.0,88474.0,0.00287677]
[1769334233325,5.19218933,88485.0,88474.0,0.00287677]
[1769334233868,5.19218933,88485.0,88474.0,0.3524721]
[1769334234073,5.19218933,88485.0,88474.0,0.34959533]
[1769334234277,5.19218933,88485.0,88475.0,0.00287673]
[1769334234481,5.19218933,88485.0,88476.0,0.6965449]
[1769334234683,5.19218933,88485.0,88479.0,0.34959533]
[1769334234881,5.19218933,88485.0,88482.0,0.34959533]
[1769334235103,5.19218933,88485.0,88484.0,0.34929738]
[1769334236714,5.19218933,88485.0,88477.0,0.01130237]
[1769334236875,5.19218933,88485.0,88478.0,0.3524705]
[1769334237082,5.19218933,88485.0,88478.0,0.34959533]
[1769334238945,5.19218933,88485.0,88472.0,0.34959533]
[1769334239159,5.19218933,88485.0,88473.0,0.35246988]
[1769334239313,5.19218933,88485.0,88473.0,0.34959533]
[1769334239533,5.19218933,88485.0,88474.0,0.00400479]
[1769334240957,5.0200457,88485.0,88474.0,0.00400479]
[1769334241160,4.78629613,88485.0,88474.0,0.00400479]
[1769334241982,4.78629613,88485.0,88473.0,0.34959533]
[1769334242225,4.78629613,88485.0,88474.0,0.00401759]
[1769334243138,4.78629613,88485.0,88474.0,0.33432685]
[1769334243341,4.78629613,88485.0,88474.0,0.33030926]
[1769334244931,4.78629613,88485.0,88475.0,0.00297024]
[1769334245555,4.78629613,88485.0,88475.0,0.00466562]
[1769334249689,4.78629613,88485.0,88475.0,0.33497488]
[1769334249886,4.78629613,88485.0,88475.0,0.33030926]
[1769334256504,0.734677,88484.0,88468.0,0.01130352]
[1769334256703,0.734677,88484.0,88470.0,0.30436445]
[1769334256901,0.734677,88484.0,88471.0,0.00503092]
[1769334257651,0.734677,88484.0,88472.0,0.01746353]
[1769334257848,0.734677,88484.0,88471.0,0.01746396]
[1769334261654,0.734677,88484.0,88471.0,0.02876709]
[1769334267896,0.734677,88484.0,88472.0,0.01130301]
[1769334268103,0.734677,88484.0,88473.0,0.01746356]
[1769334270304,4.78629613,88485.0,88474.0,0.32834715]
[1769334279906,5.46009809,88485.0,88474.0,0.32834715]
[1769334283049,4.78629613,88485.0,88474.0,0.32834715]
[1769334283209,4.78629613,88485.0,88473.0,0.33075596]
[1769334290342,5.46009809,88485.0,88473.0,0.33075596]
[1769334292796,4.78629613,88485.0,88464.0,0.01130403]
[1769334292955,0.67380196,88484.0,88465.0,0.35720992]
[1769334293160,0.67380196,88484.0,88465.0,0.34205986]
[1769334293405,0.67380196,88484.0,88467.0,0.33075596]
[1769334293697,0.67380196,88484.0,88468.0,0.3459055]
[1769334293931,0.67380196,88484.0,88468.0,0.33075596]
[1769334294914,0.67380196,88484.0,88465.0,0.0113039]
[1769334294915,0.67380196,88484.0,88470.0,0.33075596]
[1769334295113,0.67380196,88484.0,88471.0,0.05889572]
[1769334295703,0.67380196,88484.0,88471.0,0.09281385]
[1769334296443,0.67380196,88484.0,88471.0,0.09381385]
[1769334296818,0.67380196,88484.0,88471.0,0.09281385]
[1769334301089,0.67380196,88483.0,88465.0,0.02758441]
[1769334301426,0.67380196,88481.0,88469.0,0.0339194]
[1769334301705,0.17364,88480.0,88470.0,0.04713887]
[1769334302124,0.17364,88480.0,88469.0,0.0339194]
[1769334304447,0.17364,88480.0,88470.0,0.29308402]
[1769334306908,0.17364,88480.0,88470.0,0.63740349]
[1769334312426,0.17364,88480.0,88471.0,0.16896638]
[1769334313650,0.17364,88480.0,88476.0,0.00613188]
[1769334313856,0.82647496,88480.0,88476.0,0.00613188]
[1769334314753,0.64797757,88479.0,88476.0,0.00613188]
[1769334318525,0.17364,88480.0,88476.0,0.00613188]
[1769334326190,0.00916662,88480.0,88476.0,0.00613188]
[1769334327498,0.82161757,88481.0,88476.0,0.00613188]
[1769334327683,0.82161757,88481.0,88477.0,0.04550824]
[1769334336846,0.17364,88481.0,88477.0,0.04550824]
[1769334342994,0.65360352,88480.0,88477.0,0.04550824]
[1769334343199,0.17364,88481.0,88477.0,0.04550824]
[1769334356495,0.16364,88481.0,88478.0,0.33150258]
[1769334356694,0.16364,88481.0,88479.0,0.02463963]
[1769334361435,0.16364,88481.0,88470.0,0.29308764]
[1769334361436,0.65360352,88480.0,88470.0,0.16889887]
[1769334361610,0.64360352,88480.0,88469.0,0.06098856]
[1769334365701,0.64360352,88480.0,88469.0,0.07229195]
[1769334365877,0.64360352,88480.0,88469.0,0.06098856]
[1769334366056,0.59136759,88480.0,88470.0,0.01130326]
[1769334366464,0.59136759,88480.0,88469.0,0.40611391]
[1769334366810,0.59136759,88480.0,88470.0,0.01130326]
[1769334367712,0.16364,88481.0,88470.0,0.01130326]
[1769334368119,0.16364,88481.0,88469.0,0.39481052]
[1769334368313,0.16364,88481.0,88469.0,0.40611391]
[1769334368516,0.16364,88481.0,88469.0,0.39481052]
[1769334368715,0.16364,88481.0,88471.0,0.39033716]
[1769334368951,0.16364,88481.0,88472.0,0.01130301]
[1769334369386,0.16364,88481.0,88471.0,0.33382196]
[1769334370567,0.16364,88481.0,88471.0,0.34512509]
[1769334370734,0.16364,88481.0,88472.0,0.01130301]
[1769334370934,0.16364,88481.0,88473.0,0.01130288]
[1769334371135,0.16364,88481.0,88472.0,0.01130301]
[1769334371752,0.16364,88481.0,88473.0,0.01130288]
[1769334372160,0.16364,88481.0,88472.0,0.01130301]
[1769334372891,0.16364,88481.0,88471.0,0.34512509]
[1769334373095,0.16364,88481.0,88473.0,0.01130288]
[1769334373272,0.16364,88481.0,88472.0,0.01130301]
[1769334373935,0.16364,88481.0,88471.0,0.34512509]
[1769334374332,0.16364,88481.0,88471.0,0.33382196]
[1769334402563,0.16364,88481.0,88474.0,0.16921454]
[1769334402804,0.16364,88481.0,88475.0,0.16921454]
[1769334405209,0.16364,88481.0,88471.0,0.33382196]
[1769334415405,0.16364,88481.0,88472.0,0.03392017]
[1769334418436,0.65316626,88484.0,88472.0,0.03392017]
[1769334437436,0.64914518,88482.0,88469.0,0.17364]
[1769334437763,0.64914518,88478.0,88468.0,0.03392208]
[1769334437969,0.64914518,88467.0,88459.0,0.00014222]
[1769334438170,4.51876639,88485.0,88459.0,0.00014222]
[1769334438171,0.30711867,88465.0,88459.0,0.00014222]
[1769334438374,0.64914518,88462.0,88459.0,0.00014222]
[1769334440007,0.64914518,88460.0,88459.0,0.00014222]
[1769334441456,0.41040268,88460.0,88459.0,0.00014222]
[1769334443496,0.41040268,88460.0,88444.0,0.07219338]
[1769334443497,0.41040268,88460.0,88429.0,0.32983873]
[1769334443498,0.30711867,88457.0,88429.0,0.32983873]
[1769334443712,0.30711867,88453.0,88430.0,0.29308165]
[1769334443912,0.64914518,88450.0,88430.0,0.29308165]
[1769334444117,0.30711867,88448.0,88430.0,0.29308165]
[1769334444288,0.64914518,88447.0,88430.0,0.29308165]
[1769334444956,0.64914518,88447.0,88429.0,0.32983873]
[1769334445162,0.64914518,88445.0,88429.0,0.32983873]
[1769334445575,0.03393452,88449.0,88424.0,0.58792905]
[1769334445576,0.64914518,88443.0,88424.0,0.58792905]
[1769334445779,0.64914518,88442.0,88424.0,0.58792905]
[1769334445992,0.30711867,88441.0,88423.0,0.32983873]
[1769334446199,0.30711867,88440.0,88423.0,0.32983873]
[1769334446418,0.64914518,88439.0,88423.0,0.32983873]
[1769334451393,0.0339369,88443.0,88422.0,0.0001463]
[1769334451394,0.30711867,88436.0,88422.0,0.0001463]
[1769334451594,0.64914518,88435.0,88423.0,0.01071122]
[1769334451795,0.64914518,88433.0,88422.0,0.0001463]
[1769334452018,0.64914518,88432.0,88422.0,0.0001463]
[1769334453205,0.64914518,88432.0,88418.0,0.0001088]
[1769334458326,0.04524,88446.0,88418.0,0.0001088]
[1769334458327,0.32382513,88429.0,88418.0,0.0001088]
[1769334458516,0.04524,88446.0,88418.0,0.00618881]
[1769334458517,0.61934794,88426.0,88418.0,0.00618881]
[1769334458716,0.61934794,88426.0,88418.0,0.0001088]
[1769334459493,0.61939532,88426.0,88418.0,0.0001088]
[1769334463938,0.61939532,88426.0,88409.0,0.0001516]
[1769334463939,0.0001088,88418.0,88409.0,0.0001516]
[1769334464118,0.0001088,88418.0,88398.0,0.32495065]
[1769334464119,0.61934794,88415.0,88398.0,0.32495065]
[1769334464349,4.738e-05,88426.0,88395.0,0.0004]
[1769334464350,0.61934794,88413.0,88395.0,0.0004]
[1769334464556,0.61934794,88409.0,88395.0,0.0004]
[1769334464769,0.32382513,88406.0,88391.0,0.0001516]
[1769334464969,0.61934794,88403.0,88391.0,0.0001516]
[1769334465191,0.04524,88406.0,88391.0,0.0001516]
[1769334465192,0.61934794,88400.0,88391.0,0.0001516]
[1769334465795,0.61901603,88400.0,88391.0,0.0001516]
[1769334468782,0.17376,88407.0,88391.0,0.0001516]
[1769334468783,0.020736,88437.0,88400.0,0.00985778]
[1769334468982,0.00452692,88404.0,88400.0,0.00985778]
[1769334469525,0.61934794,88415.0,88396.0,0.32495065]
[1769334469728,0.61934794,88414.0,88396.0,0.32495065]
[1769334470137,0.65329989,88414.0,88396.0,0.32495065]
[1769334474048,0.61934794,88414.0,88396.0,0.32495065]
[1769334474388,0.03395195,88413.0,88396.0,0.32495065]
[1769334474597,0.61934794,88412.0,88396.0,0.32495065]
[1769334475456,0.03395195,88411.0,88396.0,0.32495065]
[1769334475662,0.61934794,88412.0,88396.0,0.32495065]
[1769334477703,0.40410148,88412.0,88396.0,0.32495065]
[1769334478477,0.32382513,88409.0,88391.0,0.0001516]
[1769334478676,0.41378078,88406.0,88391.0,0.0001516]
[1769334478907,0.41378078,88404.0,88391.0,0.0001516]
[1769334481029,0.32382513,88414.0,88392.0,0.67617518]
[1769334481248,0.41378078,88413.0,88393.0,0.34521452]
[1769334481470,0.41378078,88413.0,88393.0,0.32495065]
[1769334481632,0.45968286,88412.0,88393.0,0.32495065]
[1769334481834,0.04524,88417.0,88394.0,0.32495065]
[1769334482062,0.45902078,88417.0,88396.0,0.67617518]
[1769334482293,0.45902078,88417.0,88398.0,1.00112583]
[1769334482611,0.41378078,88416.0,88398.0,1.00112583]
[1769334482787,0.32382513,88416.0,88398.0,0.32495065]
[1769334483014,0.41378078,88415.0,88398.0,0.32495065]
[1769334483216,0.41378078,88414.0,88398.0,0.32495065]
[1769334485863,0.20281558,88414.0,88398.0,0.32495065]
[1769334486269,0.04528,88419.0,88398.0,0.32495065]
[1769334486479,0.20492523,88418.0,88398.0,0.32495065]
[1769334486894,0.50659455,88416.0,88398.0,0.32495065]
[1769334487072,0.20492523,88415.0,88398.0,0.32495065]
[1769334491682,0.30166932,88428.0,88415.0,0.00985778]
[1769334492092,0.30166932,88428.0,88412.0,0.67594933]
[1769334495372,0.30166932,88428.0,88412.0,0.98281902]
[1769334495761,0.2446516,88441.0,88415.0,0.94771926]
[1769334495762,0.30172835,88438.0,88415.0,0.94771926]
[1769334495979,0.30172835,88438.0,88418.0,0.30686969]
[1769334496199,0.30172835,88438.0,88420.0,0.94771926]
[1769334496830,0.30172835,88438.0,88416.0,0.01131017]
[1769334497048,0.0001516,88441.0,88415.0,0.000475]
[1769334497049,0.0001516,88441.0,88420.0,0.29360093]
[1769334497192,0.0001516,88450.0,88424.0,0.30686969]
[1769334497193,0.64366329,88446.0,88424.0,0.30686969]
[1769334497378,0.64366329,88446.0,88421.0,0.01130953]
[1769334497379,0.64366329,88446.0,88426.0,0.30686969]
[1769334497585,0.64366329,88446.0,88428.0,0.64084957]
[1769334497836,0.4246507,88446.0,88429.0,0.30686969]
[1769334498195,0.4246507,88446.0,88429.0,0.94716076]
[1769334498370,0.30172835,88450.0,88421.0,0.01130953]
[1769334498532,0.30172835,88450.0,88426.0,0.30686969]
[1769334498737,0.30172835,88450.0,88430.0,0.30686969]
[1769334498738,0.72871926,88450.0,88430.0,0.30686969]
[1769334498947,0.72871926,88450.0,88430.0,0.94771926]
[1769334499149,0.72871926,88450.0,88424.0,0.01130914]
[1769334499370,0.72871926,88450.0,88426.0,0.30686969]
[1769334499599,0.72871926,88450.0,88429.0,0.64084957]
[1769334499794,0.72871926,88450.0,88431.0,0.64084957]
[1769334499994,0.72871926,88450.0,88432.0,0.94771926]
[1769334500707,0.72871926,88450.0,88432.0,0.64084957]
[1769334500912,0.72871926,88450.0,88432.0,0.94771926]
[1769334501322,0.72871926,88450.0,88431.0,0.30686969]
[1769334501539,0.72871926,88450.0,88433.0,0.30686969]
[1769334501727,0.72871926,88450.0,88433.0,0.94771926]
[1769334504063,0.04528,88451.0,88433.0,0.94771926]
[1769334504064,0.04528,88451.0,88443.0,0.30686969]
[1769334504282,0.04528,88451.0,88432.0,0.01130812]
[1769334504283,0.04528,88451.0,88445.0,0.30686969]
[1769334506787,0.04528,88451.0,88440.0,0.30686969]
[1769334508255,0.0001728,88454.0,88440.0,0.30686969]
[1769334513668,0.0001728,88454.0,88441.0,0.69198142]